fUSD/lending_fUSD_20240630
["ID","MTS","AMOUNT","RATE_DAILY","PERIOD"]
[330706740,1719718246871,-1068.0,0.000206,8]
[330706741,1719718246881,-150.0,0.00020615,2]
[330706742,1719718246890,-150.0,0.00020646,2]
[330706743,1719718246901,-343.1,0.00020676,2]
[330706744,1719718246911,-7450.9002232,0.00020677,2]
[330706745,1719718246927,-150.0,0.00020692,2]
[330706746,1719718246943,-150.0,0.00020692,2]
[330706747,1719718246953,-150.0,0.00020699,2]
[330706748,1719718246964,-1600.0,0.000207,7]
[330706749,1719718246974,-1019.0,0.000207,2]
[330706750,1719718246986,-161.50112926,0.00020718,2]
[330706751,1719718246997,-204.00209393,0.00020718,2]
[330706752,1719718247007,-213.0,0.0002073,2]
[330706753,1719718247017,-150.0,0.00020755,2]
[330706754,1719718247028,-188.55618567,0.00020771,3]
[330706755,1719718247039,-18299.14483679,0.00020781,2]
[330706756,1719718247049,-150.0,0.0002079,2]
[330706757,1719718247061,-1105.60527474,0.00020799,5]
[330706758,1719718247073,-150.0,0.00020799,2]
[330706759,1719718247083,-2100.0,0.000208,7]
[330706760,1719718247093,-622581.310951,0.000208,3]
[330706761,1719718247104,-150.0,0.00020818,2]
[330706762,1719718247114,-150.0,0.0002083,2]
[330706763,1719718247125,-65820.66235452,0.00020849,2]
[330706764,1719718247135,-150.0,0.00020871,2]
[330706765,1719718247145,-1008.9,0.00020885,2]
[330706766,1719718247155,-1008.9,0.00020885,2]
[330706767,1719718247164,-2700.0,0.000209,7]
[330706768,1719718247174,-162442.558761,0.000209,3]
[330706769,1719718247184,-150.0,0.00020905,2]
[330706770,1719718247194,-150.0,0.00020927,2]
[330706771,1719718247204,-155.0,0.00021,2]
[330706772,1719718247215,-191.0,0.00021,3]
[330706773,1719718247225,-2000.0,0.00021,2]
[330706774,1719718247236,-203.02303,0.00021,2]
[330706775,1719718247246,-1250.0,0.00021,2]
[330706776,1719718247256,-150.0,0.00021013,2]
[330706777,1719718247266,-18299.14483679,0.00021015,2]
[330706778,1719718247276,-150.0,0.00021043,2]
[330706780,1719718247286,-150.0,0.00021064,2]
[330706782,1719718247296,-1715.7,0.00021068,2]
[330706783,1719718247306,-50000.0,0.0002107,2]
[330706784,1719718247316,-1001.80104169,0.00021089,2]
[330706785,1719718247327,-209.70110189,0.00021099,2]
[330706786,1719718247337,-5917.61448534,0.00021099,2]
[330706787,1719718247348,-98691.68793575,0.000211,2]
[330706788,1719718247358,-2302.98345666,0.000211,2]
[330706789,1719718247368,-2577.0,0.000211,2]
[330706790,1719718247378,-257.0,0.000211,2]
[330706791,1719718247388,-257.0,0.000211,2]
[330706792,1719718247397,-515.0,0.000211,2]
[330706793,1719718247407,-515.0,0.000211,2]
[330706794,1719718247418,-1068.0,0.000211,9]
[330706795,1719718247428,-213.0,0.000211,2]
[330706796,1719718247439,-217.0,0.000211,2]
[330706797,1719718247450,-500.09136863,0.000211,2]
[330706798,1719718247460,-166.1672785,0.000211,2]
[330706799,1719718247471,-200.0,0.000211,2]
[330706800,1719718247483,-343.1,0.000211,2]
[330706801,1719718247493,-150.0,0.000211,2]
[330706802,1719718247503,-150.0,0.000211,2]
[330706803,1719718247512,-216.84771333,0.000211,2]
[330706804,1719718247523,-150.0,0.000211,2]
[330706805,1719718247532,-150.0,0.000211,2]
[330706806,1719718247542,-150.0,0.000211,2]
[330706807,1719718247553,-150.0,0.000211,2]
[330706808,1719718247563,-150.0,0.000211,2]
[330706809,1719718247573,-150.0,0.000211,2]
[330706810,1719718247583,-320.66474997,0.00021106,2]
[330706811,1719718247593,-19970.2760446,0.00021167,2]
[330706812,1719718247603,-1247.9156423,0.00021182,2]
[330706813,1719718247614,-371.8201553,0.00021182,2]
[330706814,1719718247627,-150.0,0.00021197,2]
[330706815,1719718247637,-154.216999,0.00021249,2]
[330706816,1719718247648,-151.0,0.00021249,2]
[330706817,1719718247658,-18299.14483679,0.00021249,2]
[330706818,1719718247669,-337.38384532,0.00021252,2]
[330706819,1719718247679,-523.0,0.00021342,2]
[330706820,1719718247690,-500.09136863,0.00021352,2]
[330706821,1719718247699,-166.1672785,0.00021352,2]
[330706822,1719718247711,-216.84771333,0.00021352,2]
[330706823,1719718247721,-2516318.89667335,0.0002137,7]
[330706824,1719718247732,-170071.78,0.0002137,2]
[330706825,1719718247742,-5888.4,0.0002137,2]
[330706826,1719718247753,-151.0,0.0002137,2]
[330706827,1719718247763,-158.15804,0.0002137,2]
[330706828,1719718247774,-261.551475,0.0002137,2]
[330706829,1719718247784,-261.551475,0.0002137,2]
[330706830,1719718247796,-151.0,0.0002137,2]
[330706831,1719718247806,-250.0,0.000214,2]
[330706832,1719718247816,-250.0,0.000214,2]
[330706833,1719718247826,-18299.14483679,0.00021484,2]
[330706834,1719718247836,-226538.57345945,0.00021498,2]
[330706835,1719718247847,-151.0,0.00021498,2]
[330706836,1719718247857,-155.698235,0.00021498,2]
[330706837,1719718247867,-153.082466,0.00021498,2]
[330706838,1719718247877,-155.942643,0.00021498,2]
[330706839,1719718247888,-237.746955,0.00021498,2]
[330706840,1719718247899,-151.0,0.00021498,2]
[330706841,1719718247909,-151.0,0.00021498,2]
[330706842,1719718247922,-151.0,0.00021498,2]
[330706843,1719718247932,-151.0,0.00021498,2]
[330706844,1719718247942,-211.677772,0.00021498,2]
[330706845,1719718247951,-176.020436,0.00021498,2]
[330706846,1719718247962,-3002.1323832,0.000215,2]
[330706847,1719718247973,-197.0,0.0002159,3]
[330706848,1719718247984,-1068.0,0.000216,9]
[330706849,1719718247995,-500.09136863,0.00021603,2]
[330706850,1719718248006,-166.1672785,0.00021603,2]
[330706851,1719718248017,-216.84771333,0.00021603,2]
[330706852,1719718248028,-309.72,0.00021605,2]
[330706853,1719718248039,-157.54,0.00021644,2]
[330706854,1719718248049,-183.34,0.00021644,2]
[330706855,1719718248059,-166.54,0.00021644,2]
[330706856,1719718248069,-191.6,0.00021644,2]
[330706857,1719718248080,-940.95,0.00021644,2]
[330706858,1719718248090,-600.0,0.000217,2]
[330706859,1719718248100,-8698.86552365,0.000217,2]
[330706860,1719718248110,-4545.47,0.000217,2]
[330706861,1719718248121,-4902.53,0.000217,2]
[330706862,1719718248131,-13747.83,0.000217,2]
[330706863,1719718248140,-320.66474997,0.00021701,2]
[330706864,1719718248151,-150.0,0.00021702,2]
[330706865,1719718248161,-18299.14483679,0.00021718,2]
[330706866,1719718248171,-1008.9,0.0002177,2]
[330706867,1719718248182,-1008.9,0.0002177,2]
[330706868,1719718248192,-500.0,0.000218,7]
[330706869,1719718248203,-1000.0,0.000218,8]
[330706870,1719718248212,-1000.0,0.000218,10]
[330706871,1719718248223,-1000.0,0.000218,12]
[330706872,1719718248236,-161.50112924,0.00021804,2]
[330706873,1719718248246,-800.0,0.00021808,2]
[330706874,1719718248257,-800.0,0.00021808,2]
[330706875,1719718248268,-800.0,0.00021808,2]
[330706876,1719718248278,-800.0,0.00021808,2]
[330706877,1719718248288,-150.0,0.00021811,2]
[330706878,1719718248298,-500.09136863,0.00021855,2]
[330706879,1719718248308,-166.1672785,0.00021855,2]
[330706880,1719718248318,-216.84771333,0.00021855,2]
[330706881,1719718248330,-16021.0524797,0.00021864,2]
[330706882,1719718248340,-12071.8289149,0.00021864,2]
[330706883,1719718248350,-1247.9156423,0.00021865,2]
[330706884,1719718248360,-1247.9156423,0.00021865,2]
[330706885,1719718248370,-1247.9156423,0.00021865,2]
[330706886,1719718248380,-1247.9156423,0.00021865,2]
[330706887,1719718248391,-371.8201553,0.00021865,2]
[330706888,1719718248402,-371.8201553,0.00021865,2]
[330706889,1719718248412,-371.8201553,0.00021865,2]
[330706890,1719718248422,-371.8201553,0.00021865,2]
[330706891,1719718248432,-8122.60535,0.00021865,2]
[330706892,1719718248443,-4173.3817852,0.00021865,2]
[330706893,1719718248452,-65820.66235452,0.0002187,2]
[330706894,1719718248464,-1105.60527475,0.00021879,5]
[330706895,1719718248475,-1058289.01685906,0.0002188,2]
[330706896,1719718248486,-1411325.79687161,0.0002188,2]
[330706897,1719718248496,-260063.63684295,0.0002188,2]
[330706898,1719718248707,-103307.35088998,0.0002188,2]
[330706899,1719718248722,-18409.38747708,0.0002188,2]
[330706900,1719718248733,-13581.27350955,0.0002188,2]
[330706901,1719718248743,-151.0,0.0002188,2]
[330706902,1719718248755,-151.0,0.0002188,2]
[330706903,1719718248766,-151.0,0.0002188,2]
[330706904,1719718248775,-151.0,0.0002188,2]
[330706905,1719718248786,-151.0,0.0002188,2]
[330706906,1719718248795,-153.31816,0.0002188,2]
[330706907,1719718248806,-159.497007,0.0002188,2]
[330706908,1719718248816,-151.0,0.0002188,2]
[330706909,1719718248826,-159.170681,0.0002188,2]
[330706910,1719718248836,-151.0,0.0002188,2]
[330706911,1719718248846,-151.0,0.0002188,2]
[330706912,1719718248857,-151.0,0.0002188,2]
[330706913,1719718248867,-151.0,0.0002188,2]
[330706914,1719718248877,-151.0,0.0002188,2]
[330706915,1719718248887,-168.023528,0.0002188,2]
[330706916,1719718248897,-165.247489,0.0002188,2]
[330706917,1719718248907,-151.0,0.0002188,2]
[330706918,1719718248918,-151.0,0.0002188,2]
[330706919,1719718248939,-151.0,0.0002188,2]
[330706920,1719718248950,-278.198411,0.0002188,2]
[330706921,1719718248962,-152.937255,0.0002188,2]
[330706922,1719718248971,-286.635066,0.0002188,2]
[330706923,1719718248982,-154.567123,0.0002188,2]
[330706924,1719718248995,-261.551475,0.0002188,2]
[330706925,1719718249004,-261.551475,0.0002188,2]
[330706926,1719718249014,-261.551475,0.0002188,2]
[330706927,1719718249024,-261.551475,0.0002188,2]
[330706928,1719718249034,-151.0,0.0002188,2]
[330706929,1719718249144,-151.0,0.0002188,2]
[330706930,1719718249155,-500.0,0.000219,7]
[330706931,1719718249165,-27000.0,0.000219,2]
[330706932,1719718249175,-10538.62458986,0.000219,2]
[330706933,1719718249185,-222.4,0.00021917,3]
[330706934,1719718249195,-222.4,0.00021917,3]
[330706935,1719718249204,-222.4,0.00021917,3]
[330706936,1719718249214,-222.4,0.00021917,3]
[330706937,1719718249224,-222.4,0.00021917,3]
[330706938,1719718249234,-222.4,0.00021917,3]
[330706939,1719718249244,-222.4,0.00021917,3]
[330706940,1719718249253,-222.4,0.00021917,3]
[330706941,1719718249263,-222.4,0.00021917,3]
[330706942,1719718249273,-222.4,0.00021917,3]
[330706943,1719718249283,-222.4,0.00021917,3]
[330706944,1719718249293,-222.4,0.00021917,3]
[330706945,1719718249303,-222.4,0.00021917,3]
[330706946,1719718249312,-222.4,0.00021917,3]
[330706947,1719718249322,-222.4,0.00021917,3]
[330706948,1719718249331,-222.4,0.00021917,3]
[330706949,1719718249341,-222.4,0.00021917,3]
[330706950,1719718249351,-222.4,0.00021917,3]
[330706951,1719718249360,-222.4,0.00021917,3]
[330706952,1719718249371,-222.4,0.00021917,3]
[330706953,1719718249382,-222.4,0.00021917,3]
[330706954,1719718249392,-222.4,0.00021917,3]
[330706955,1719718249402,-222.4,0.00021917,3]
[330706956,1719718249413,-222.50643187,0.00021917,3]
[330706957,1719718249423,-304.62,0.00021917,7]
[330706958,1719718249433,-304.62,0.00021917,7]
[330706959,1719718249444,-304.62,0.00021917,7]
[330706960,1719718249454,-304.62,0.00021917,7]
[330706961,1719718249464,-304.62,0.00021917,7]
[330706962,1719718249474,-304.62,0.00021917,7]
[330706963,1719718249486,-304.62,0.00021917,7]
[330706964,1719718249496,-304.62,0.00021917,7]
[330706965,1719718249507,-304.62,0.00021917,7]
[330706966,1719718249517,-304.62,0.00021917,7]
[330706967,1719718249527,-304.62,0.00021917,7]
[330706968,1719718249536,-304.62,0.00021917,7]
[330706969,1719718249546,-304.62,0.00021917,7]
[330706970,1719718249555,-304.62,0.00021917,7]
[330706971,1719718249565,-304.62,0.00021917,7]
[330706972,1719718249575,-304.62,0.00021917,7]
[330706973,1719718249586,-304.62,0.00021917,7]
[330706974,1719718249595,-304.62,0.00021917,7]
[330706975,1719718249605,-304.62,0.00021917,7]
[330706976,1719718249616,-304.62,0.00021917,7]
[330706977,1719718249625,-304.62,0.00021917,7]
[330706978,1719718249635,-304.62,0.00021917,7]
[330706979,1719718249645,-304.62,0.00021917,7]
[330706980,1719718249655,-304.62829725,0.00021917,7]
[330706981,1719718249665,-150.0,0.00021917,2]
[330706982,1719718249674,-300.0,0.00021917,2]
[330706983,1719718249684,-450.0,0.00021917,2]
[330706984,1719718249694,-600.0,0.00021917,2]
[330706985,1719718249704,-750.0,0.00021917,2]
[330706986,1719718249714,-252.60509461,0.00021917,2]
[330706987,1719718249724,-552.83,0.00021918,2]
[330706988,1719718249735,-2149.34,0.00021918,2]
[330706989,1719718249745,-422.36,0.00021918,2]
[330706990,1719718249755,-500.0,0.00021918,2]
[330706991,1719718249765,-500.0,0.00021918,2]
[330706992,1719718249774,-500.0,0.00021918,2]
[330706993,1719718249784,-500.0,0.00021918,2]
[330706994,1719718249794,-500.0,0.00021918,2]
[330706995,1719718249804,-500.0,0.00021918,2]
[330706996,1719718249814,-150.0,0.00021918,2]
[330706997,1719718249823,-150.0,0.00021918,2]
[330706998,1719718249833,-150.0,0.00021918,2]
[330706999,1719718249843,-13055.76989078,0.0002193,3]
[330707000,1719718250079,-50000.0,0.00014384,2]
[330707001,1719718250088,-500.0,0.00014574,3]
[330707002,1719718250099,-500.0,0.00014684,3]
[330707003,1719718250108,-500.0,0.00014793,3]
[330707004,1719718250118,-500.0,0.00014903,3]
[330707005,1719718250127,-500.0,0.00015013,3]
[330707006,1719718250138,-500.0,0.00015122,3]
[330707007,1719718250148,-500.0,0.00015232,3]
[330707008,1719718250157,-500.0,0.00015341,3]
[330707009,1719718250167,-500.0,0.00015451,3]
[330707010,1719718250176,-3926.61642537,0.00017788,2]
[330707011,1719718250186,-200.2225765,0.00018,2]
[330707012,1719718250196,-200.2225765,0.00018,2]
[330707013,1719718250205,-200.2225765,0.00018,2]
[330707014,1719718250214,-200.2225765,0.00018,2]
[330707015,1719718250223,-200.2225765,0.00018,2]
[330707016,1719718250233,-200.2225765,0.00018,2]
[330707017,1719718250243,-200.2225765,0.00018,2]
[330707018,1719718250253,-200.2225765,0.00018,2]
[330707019,1719718250262,-200.2225765,0.00018,2]
[330707020,1719718250272,-200.2225765,0.00018,2]
[330707021,1719718250281,-7437.78176782,0.0002193,3]
[330707022,1719718250291,-18299.14483679,0.00021953,2]
[330707023,1719718250300,-155.27970347,0.00021999,10]
[330707024,1719718250309,-155.46954956,0.00021999,10]
[330707025,1719718250319,-150.0,0.00021999,10]
[330707026,1719718250329,-2631.0,0.00022,2]
[330707027,1719718250338,-11765.0,0.00022,2]
[330707028,1719718250348,-159.5444141,0.00022,2]
[330707029,1719718250358,-204.40639123,0.00022,2]
[330707030,1719718250368,-3200.0,0.00022,2]
[330707031,1719718250378,-160.0,0.00022,2]
[330707032,1719718250387,-241.15010553,0.00022,2]
[330707033,1719718250396,-1065.15743403,0.00022,2]
[330707034,1719718250406,-151.91745406,0.00022,2]
[330707035,1719718250416,-30910.91312059,0.00022,2]
[330707036,1719718250425,-2492.27739478,0.00022,2]
[330707037,1719718250436,-1800.0,0.00022,23]
[330707038,1719718250446,-2000.0,0.00022,2]
[330707039,1719718250456,-1521.74731116,0.00022,2]
[330707040,1719718250466,-216.66170599,0.00022,4]
[330707041,1719718250476,-2248.68480395,0.00022,2]
[330707042,1719718250720,-1006.3525,0.00022,2]
[330707043,1719718250732,-1315.02723563,0.00022,2]
[330707044,1719718250745,-818.84263907,0.00022,2]
[330707045,1719718250757,-660.19,0.00022,2]
[330707046,1719718250769,-2084.09343301,0.00022,2]
[330707047,1719718250781,-1866.80938834,0.00022,2]
[330707048,1719718250792,-10000.0,0.00022,2]
[330707049,1719718250803,-10000.0,0.00022,2]
[330707050,1719718250814,-15372.41884139,0.00022,2]
[330707051,1719718250823,-10000.0,0.00022,2]
[330707052,1719718250832,-16323.72677187,0.00022,2]
[330707053,1719718250842,-10910.1946113,0.00022,2]
[330707054,1719718250851,-7536.88599322,0.00022,2]
[330707055,1719718250861,-10357.82566293,0.00022,2]
[330707056,1719718250871,-159.5477176,0.00022005,2]
[330707057,1719718250881,-152.62131631,0.00022007,2]
[330707058,1719718250890,-152.39083854,0.0002201,2]
[330707059,1719718250900,-166.66666666,0.00022011,2]
[330707060,1719718250909,-1810.69634678,0.00022013,2]
[330707061,1719718250921,-302.29133794,0.00022017,2]
[330707062,1719718250932,-3202.06787088,0.00022018,2]
[330707063,1719718250942,-1810.69634678,0.00022018,2]
[330707064,1719718250951,-150.03162326,0.00022021,2]
[330707065,1719718250961,-170.91839145,0.00022021,2]
[330707066,1719718250973,-159.57451709,0.00022024,2]
[330707067,1719718250983,-307.21215101,0.00022026,2]
[330707068,1719718250993,-1810.69634678,0.00022027,2]
[330707069,1719718251003,-166.66666666,0.00022027,2]
[330707070,1719718251014,-1844.7796169,0.00022034,2]
[330707071,1719718251023,-151.02404253,0.00022034,2]
[330707072,1719718251033,-237.95505599,0.00022043,2]
[330707073,1719718251043,-204.82962829,0.00022046,2]
[330707074,1719718251052,-154.81279975,0.00022054,2]
[330707075,1719718251062,-686.37788793,0.00022054,2]
[330707076,1719718251072,-152.62131631,0.00022059,2]
[330707077,1719718251082,-774.49,0.0002206,2]
[330707078,1719718251092,-254.49669579,0.00022068,2]
[330707079,1719718251102,-204.82962829,0.00022073,2]
[330707080,1719718251111,-569.03335545,0.00022074,2]
[330707081,1719718251120,-204.82962829,0.00022076,2]
[330707082,1719718251130,-307.21215101,0.0002208,2]
[330707083,1719718251139,-166.66666666,0.00022084,2]
[330707084,1719718251149,-569.03335545,0.00022099,2]
[330707085,1719718251158,-1068.0,0.000221,10]
[330707086,1719718251168,-159.57451709,0.000221,2]
[330707087,1719718251177,-151.0,0.00022101,7]
[330707088,1719718251186,-158.361291,0.00022101,7]
[330707089,1719718251196,-150.0,0.00022105,2]
[330707090,1719718251205,-500.09136863,0.00022106,2]
[330707091,1719718251215,-166.1672785,0.00022106,2]
[330707092,1719718251225,-216.84771333,0.00022106,2]
[330707093,1719718251234,-226.16709276,0.0002211,2]
[330707094,1719718251244,-3202.06787088,0.00022111,2]
[330707095,1719718251253,-237.95505599,0.00022114,2]
[330707096,1719718251267,-154.35372058,0.00022115,2]
[330707097,1719718251276,-150.69214422,0.00022116,2]
[330707098,1719718251286,-686.37788793,0.00022117,2]
[330707099,1719718251295,-154.35372058,0.00022121,2]
[330707100,1719718251305,-1238.08033387,0.00022136,2]
[330707101,1719718251315,-254.49669579,0.00022142,2]
[330707102,1719718251324,-467.4208706,0.00022159,2]
[330707103,1719718251334,-152.62131631,0.00022159,2]
[330707104,1719718251344,-1844.7796169,0.00022161,2]
[330707105,1719718251354,-467.4208706,0.00022162,2]
[330707106,1719718251363,-150.83,0.00022163,2]
[330707107,1719718251372,-254.49669579,0.00022166,2]
[330707108,1719718251382,-150.03162326,0.00022168,2]
[330707109,1719718251392,-161.14110778,0.00022174,2]
[330707110,1719718251401,-151.02404253,0.00022177,2]
[330707111,1719718251411,-151.02404253,0.00022181,2]
[330707112,1719718251420,-150.0,0.00022183,2]
[330707113,1719718251431,-1810.69634678,0.00022183,2]
[330707114,1719718251441,-771.70011984,0.00022184,2]
[330707115,1719718251450,-18299.14483679,0.00022187,2]
[330707116,1719718251461,-151.0,0.00022187,7]
[330707117,1719718251471,-378.99078211,0.00022191,2]
[330707118,1719718251480,-151.02404253,0.00022191,2]
[330707119,1719718251491,-150.03162326,0.00022197,2]
[330707120,1719718251500,-988.51473047,0.00022197,2]
[330707121,1719718251510,-154.32554551,0.00022199,2]
[330707122,1719718251520,-166.66666666,0.00022205,2]
[330707123,1719718251530,-150.0,0.00022206,2]
[330707124,1719718251539,-150.69214422,0.00022207,2]
[330707125,1719718251548,-166.66666666,0.00022208,2]
[330707126,1719718251558,-204.82962829,0.00022211,2]
[330707127,1719718251567,-155.77732901,0.00022213,2]
[330707128,1719718251576,-569.03335545,0.00022218,2]
[330707129,1719718251586,-467.4208706,0.00022218,2]
[330707130,1719718251595,-166.66666666,0.00022222,2]
[330707131,1719718251605,-686.37788793,0.00022223,2]
[330707132,1719718251614,-5150.32068046,0.00022228,2]
[330707133,1719718251624,-155.77732901,0.00022242,2]
[330707134,1719718251634,-191.18193023,0.00022245,2]
[330707135,1719718251644,-156.41998447,0.00022248,2]
[330707136,1719718251653,-154.35372058,0.00022257,2]
[330707137,1719718251663,-166.66666666,0.00022259,2]
[330707138,1719718251672,-166.66666666,0.00022262,2]
[330707139,1719718251682,-467.4208706,0.00022282,2]
[330707140,1719718251691,-5800.0,0.00022288,2]
[330707141,1719718251701,-166.66666666,0.00022293,2]
[330707142,1719718251711,-320.66474997,0.00022295,2]
[330707143,1719718251720,-569.03335545,0.00022301,2]
[330707144,1719718251729,-1810.69634678,0.00022304,2]
[330707145,1719718251740,-150.69214422,0.0002231,2]
[330707146,1719718251749,-988.51473047,0.00022319,2]
[330707147,1719718251760,-467.4208706,0.00022321,2]
[330707148,1719718251769,-307.21215101,0.00022337,2]
[330707149,1719718251779,-302.29133794,0.00022342,2]
[330707150,1719718251788,-269.73930495,0.00022343,2]
[330707151,1719718251798,-5800.0,0.00022345,2]
[330707152,1719718251807,-302.29133794,0.00022346,2]
[330707153,1719718251817,-254.49669579,0.00022353,2]
[330707154,1719718251826,-500.09136863,0.00022358,2]
[330707155,1719718251836,-166.1672785,0.00022358,2]
[330707156,1719718251845,-216.84771333,0.00022358,2]
[330707157,1719718251855,-5800.0,0.00022359,2]
[330707158,1719718251865,-5150.32068046,0.00022363,2]
[330707159,1719718251875,-254.49669579,0.00022367,2]
[330707160,1719718251885,-631.43649638,0.00022368,2]
[330707161,1719718251894,-1536.54380444,0.0002237,2]
[330707162,1719718251904,-261.551475,0.0002237,7]
[330707163,1719718251914,-261.551475,0.0002237,7]
[330707164,1719718251928,-211.356383,0.0002237,7]
[330707165,1719718251937,-166.66666666,0.00022374,2]
[330707166,1719718251946,-204.82962829,0.00022383,2]
[330707167,1719718251956,-152.39083854,0.00022384,2]
[330707168,1719718251966,-154.35372058,0.00022402,2]
[330707169,1719718251975,-166.66666666,0.00022404,2]
[330707170,1719718251984,-154.81279975,0.00022407,2]
[330707171,1719718251995,-302.29133794,0.00022413,2]
[330707172,1719718252004,-150.69214422,0.00022414,2]
[330707173,1719718252013,-378.99078211,0.00022417,2]
[330707174,1719718252025,-18299.14483679,0.00022421,2]
[330707175,1719718252035,-254.49669579,0.00022432,2]
[330707176,1719718252044,-269.73930495,0.00022435,2]
[330707177,1719718252054,-150.0,0.00022436,2]
[330707178,1719718252064,-1810.69634678,0.00022437,2]
[330707179,1719718252074,-150.0,0.00022438,2]
[330707180,1719718252083,-150.0,0.00022438,2]
[330707181,1719718252093,-150.0,0.00022438,2]
[330707182,1719718252102,-569.03335545,0.00022439,2]
[330707183,1719718252111,-254.49669579,0.0002244,2]
[330707184,1719718252121,-152.62131631,0.0002245,2]
[330707185,1719718252130,-1536.54380444,0.00022454,2]
[330707186,1719718252139,-150.0,0.00022465,2]
[330707187,1719718252149,-378.99078211,0.00022468,2]
[330707188,1719718252159,-988.51473047,0.00022468,2]
[330707189,1719718252168,-155.77732901,0.00022473,2]
[330707190,1719718252178,-154.35372058,0.00022475,2]
[330707191,1719718252187,-166.66666666,0.00022482,2]
[330707192,1719718252197,-378.99078211,0.0002249,2]
[330707193,1719718252206,-269.73930495,0.00022491,2]
[330707194,1719718252216,-154.81279975,0.00022497,2]
[330707195,1719718252226,-33358.57781374,0.000225,2]
[330707196,1719718252236,-302.29133794,0.00022504,2]
[330707197,1719718252246,-161.63695893,0.0002252,2]
[330707198,1719718252255,-150.0,0.00022523,2]
[330707199,1719718252264,-166.66666666,0.00022524,2]
[330707200,1719718252274,-988.51473047,0.00022524,2]
[330707201,1719718252283,-152.62131631,0.00022529,2]
[330707202,1719718252292,-155.77732901,0.0002253,2]
[330707203,1719718252302,-1536.54380444,0.00022537,2]
[330707204,1719718252311,-166.66666666,0.00022538,2]
[330707205,1719718252320,-237.95505599,0.00022541,2]
[330707206,1719718252330,-686.37788793,0.00022545,2]
[330707207,1719718252339,-307.21215101,0.00022549,2]
[330707208,1719718252349,-988.51473047,0.00022551,2]
[330707209,1719718252358,-3202.06787088,0.00022552,2]
[330707210,1719718252367,-152.98056908,0.00022557,2]
[330707211,1719718252377,-686.37788793,0.00022561,2]
[330707212,1719718252386,-771.70011984,0.00022562,2]
[330707213,1719718252395,-164.2204081,0.00022565,2]
[330707214,1719718252410,-1372.32339634,0.00022565,2]
[330707215,1719718252419,-151.15386855,0.00022566,2]
[330707216,1719718252429,-307.21215101,0.00022568,2]
[330707217,1719718252438,-150.0,0.00022568,2]
[330707218,1719718252448,-1536.54380444,0.00022578,2]
[330707219,1719718252457,-1551.32677961,0.00022583,2]
[330707220,1719718252469,-293.45283729,0.00022583,2]
[330707221,1719718252478,-408.21382971,0.0002259,2]
[330707222,1719718252492,-1402.48251707,0.0002259,2]
[330707223,1719718252501,-4545.47,0.000226,2]
[330707224,1719718252511,-841.603282,0.000226,2]
[330707225,1719718252522,-1798.58275583,0.000226,2]
[330707226,1719718252534,-855.62630079,0.000226,2]
[330707227,1719718252545,-352.72799642,0.000226,2]
[330707228,1719718252556,-1053.98966496,0.000226,2]
[330707229,1719718252566,-286.01033575,0.000226,2]
[330707230,1719718252578,-633.24,0.000226,2]
[330707231,1719718252589,-421.401,0.000226,2]
[330707232,1719718252637,-372.82318046,0.00015561,3]
[330707233,1719718252648,-127.17681954,0.00015561,3]
[330707234,1719718252658,-500.0,0.0001567,3]
[330707235,1719718252668,-200.2225765,0.00018,2]
[330707236,1719718252678,-200.2225765,0.00018,2]
[330707237,1719718252688,-200.2225765,0.00018,2]
[330707238,1719718252697,-9448.40406343,0.000226,2]
[330707239,1719718252709,-775.0,0.000226,2]
[330707240,1719718252721,-497.69162797,0.000226,2]
[330707241,1719718252733,-1175.26064,0.000226,2]